[Event "Czech Championship 2022"]
[Site "Usti nad Labem"]
[Date "2022.05.16"]
[Round "3.6"]
[White "Mikes, Jan"]
[Black "Babula, Vlastimil"]
[Result "0-1"]
[ECO "B23"]
[WhiteElo "2349"]
[BlackElo "2576"]
[Annotator "TA"]
[PlyCount "122"]
[EventDate "2022.05.12"]
[EventType "swiss"]
[EventCountry "CZE"]
[SourceTitle "playchess.com"]
[Source "ChessBase"]
[SourceQuality "1"]
[TimeControl "40/5400+30:1800+30"]

{[%evp 9,122,10,22,0,6,0,0,0,0,12,3,4,26,20,22,21,18,25,54,47,46,56,60,29,30,-12,14,-41,-36,-69,-77,-66,-14,-37,-31,-216,-211,-213,-166,-170,-126,-122,-110,-185,-189,-181,-113,-181,-120,-118,-45,-87,-52,-33,-22,-22,-22,-22,-22,-22,-22,-22,-23,-22,-22,-22,-22,-21,-53,-27,-24,-106,-91,-381,-371,-294,-278,-534,-534,-534,-534,-534,-534,-483,-475,-521,-521,-815,-797,-876,-750,-1393,-1348,-2623,-1301,-1418,-1081,-29965,-29966,-29963,-29968,-29960,-29961,-29970,-29970,-29971,-29972,-29970,-29972,-29972,-29973,-29973,-29970,-29978,-29969]} 1. e4 {[%emt 0:00:04]} c5 {[%emt 0:00:13]} 2. Nc3 {[%emt 0:00:17]} Nc6 {[%emt 0:00:33]} 3. Bb5 {[%emt 0:00:25]} Nd4 {[%emt 0:01:01]} 4. Nf3 {[%emt 0:00:30]} a6 {[%emt 0:04:25]} 5. Bd3 {[%emt 0:00:56]} Nc6 {[%emt 0:03:55]} 6. O-O {[%emt 0:01:07] B23: Closed Sicilian: Lines without g3.} e6 {[%emt 0:01:13]} 7. b3 {[%emt 0:02:33] 7.e5 deserves study.} d6 {[%emt 0:06:41]} 8. Bb2 {[%emt 0:00:23] The position is equal.} Nf6 {[%emt 0:02:36]} 9. Re1 {[%emt 0:01:12]} e5 {[%emt 0:05:58]} 10. Nd5 {[%emt 0:01:23]} Be7 {[%emt 0:05:32]} 11. c3 {[%emt 0:01:18]} O-O {[%emt 0:01:50]} 12. Nxe7+ {[%emt 0:00:56] [#]} Qxe7 $146 {[%emt 0:07:35]} ({Predecessor:} 12... Nxe7 13. Bf1 Ng6 14. d4 Qc7 15. g3 Bd7 16. Bg2 Rfe8 17. d5 h6 18. h3 Nh7 {1-0 (46) Trent,L (2423)-Emms,J (2502) Southend 2006}) 13. h3 {[%emt 0:03:36]} Nh5 {[%emt 0:06:02]} 14. Bf1 {[%emt 0:01:22]} Nf4 {[%emt 0:01:57]} 15. d4 {[%emt 0:04:35]} Qf6 {[%emt 0:06:59]} 16. Kh2 {[%emt 0:08:48]} (16. d5 $5 {[%cal Rd5c6]} Ne7 17. Bc1 $11) 16... g5 {[%emt 0:01:52][%cal Bg7g5,Bg5g4,Bg4h3][%mdl 32]} 17. d5 {[%emt 0:14:00]} Ne7 {[%emt 0:00:42]} 18. Bc1 {[%emt 0:02:09]} ({White should try} 18. g3 $11) 18... g4 $15 {[%emt 0:05:04]} 19. Ng1 {[%emt 0:01:07]} gxh3 $1 {[%emt 0:04:30] Black is more active.} 20. g3 {[%emt 0:00:40] [#]} Nd3 {[%emt 0:02:50]} 21. f4 $1 $11 {[%emt 0:09:41]} Nxe1 {[%emt 0:01:01]} 22. Qxe1 {[%emt 0:00:05] [#]} (22. f5 $1 $15) 22... exf4 $1 $19 {[%emt 0:03:24]} 23. gxf4 {[%emt 0:01:36]} Kh8 {[%emt 0:00:52]} 24. Bd2 {[%emt 0:06:41]} Ng6 {[%emt 0:05:15]} 25. c4 {[%emt 0:02:28] Threatens to win with Bc3.} Qg7 {[%emt 0:00:08]} (25... Nxf4 $2 26. Bc3 Qe5 27. Bxe5+ dxe5 28. Nxh3 $18) 26. Bc3 {[%emt 0:01:02]} (26. Qg3 $17 {was called for.}) 26... f6 {[%emt 0:00:08]} 27. Qg3 {[%emt 0:01:21]} Bd7 {[%emt 0:00:20]} ({Black should play} 27... Qh6 $19 28. Ne2 Bd7) 28. Re1 {[%emt 0:07:17]} (28. Bxh3 $17 {is a better defense.} Rae8 29. Bxd7 Qxd7 30. Re1) 28... Rae8 {[%emt 0:00:50]} (28... Qh6 $19 29. Bxh3 b6) 29. Nf3 $17 {[%emt 0:01:09]} Kg8 {[%emt 0:08:36]} (29... b5 $17 30. f5 Ne5 31. Qxg7+ Kxg7 32. Nxe5 fxe5) 30. a3 {[%emt 0:04:58]} h5 {[%emt 0:02:25]} 31. Bxh3 {[%emt 0:02:54]} Bg4 {[%emt 0:05:44]} 32. Bxg4 {[%emt 0:01:35]} hxg4 {[%emt 0:00:03]} 33. Qxg4 {[%emt 0:02:04]} Qh6+ {[%emt 0:01:57]} 34. Kg3 $1 {[%emt 0:09:58] [#]} Rxe4 $1 {[%emt 0:00:30]} 35. Rxe4 {[%emt 0:00:10]} f5 {[%emt 0:00:06] The board is on fire.} 36. Qg5 {[%emt 0:00:37]} Qxg5+ {[%emt 0:00:10]} 37. Nxg5 {[%emt 0:00:05] White wants to mate with Re6.} fxe4 {[%emt 0:00:07]} 38. Nxe4 {[%emt 0:02:14]} Nxf4 $11 {[%emt 0:00:45][%mdl 4096] Endgame KRN-KBN} 39. Kg4 {[%emt 0:01:31]} ({Not} 39. Nf6+ $2 {[#]} Rxf6 $1 {[%mdl 512]} 40. Bxf6 Nh5+ 41. Kg4 Nxf6+ $19) 39... Ne2 {[%emt 0:01:34] White must now prevent ...Rf4+.} 40. Bd2 {[%emt 0:00:34] Inhibits Rf4+.} (40. Bf6 $1 $11 {remains equal.}) 40... Nd4 $17 {[%emt 0:01:59] Black converts the advantage convincingly.} 41. b4 $2 {[%emt 0:34:41][%mdl 8192]} (41. Nxd6 $17 Nxb3 42. Bg5) 41... Nf3 $19 {[%emt 0:04:26]} 42. Bf4 {[%emt 0:00:00]} cxb4 {[%emt 0:02:13]} 43. Kxf3 $2 {[%emt 0:00:00]} (43. axb4 {only move.} Ne5+ 44. Bxe5 dxe5 45. Kg5) 43... bxa3 {[%emt 0:00:16] Hoping for ...a2.} 44. Nc3 {[%emt 0:00:00]} Rc8 {[%emt 0:02:31]} 45. Bxd6 {[%emt 0:00:00]} Rxc4 {[%emt 0:00:38]} 46. Be5 {[%emt 0:00:00]} Kf7 {[%emt 0:02:07]} 47. Ke3 {[%emt 0:00:00]} b5 {[%emt 0:00:53] Strongly threatening ...Rh4.} 48. Kd3 {[%emt 0:00:00]} Rh4 {[%emt 0:01:58]} 49. Kc2 {[%emt 0:01:50]} b4 {[%emt 0:01:26]} 50. Na2 {[%emt 0:01:48]} a5 {[%emt 0:03:14][%cal Ba6a5,Ba5a4][%mdl 32] ...a4 is the strong threat.} 51. Bd6 {[%emt 0:00:20]} Rh3 {[%emt 0:02:24]} (51... Rh6 $142 52. Bb8 Rh5) 52. Nc1 {[%emt 0:01:46]} Ke8 {[%emt 0:07:22] aiming for ...Kd7.} 53. Be5 {[%emt 0:00:33]} a4 {[%emt 0:01:04] Black mates.} 54. Bd6 {[%emt 0:00:22]} b3+ {[%emt 0:01:29]} 55. Kb1 {[%emt 0:00:05]} b2 {[%emt 0:01:53]} 56. Bxa3 {[%emt 0:00:16]} bxc1=Q+ {[%emt 0:00:57]} 57. Bxc1 {[%emt 0:00:03] KR-KB} Kd7 {[%emt 0:00:18]} 58. Bf4 {[%emt 0:00:34]} Rf3 {[%emt 0:00:31]} 59. Be5 {[%emt 0:01:02]} Rf5 {[%emt 0:00:30]} 60. Bc3 {[%emt 0:00:33]} Kd6 {[%emt 0:01:10]} 61. Ka2 {[%emt 0:00:31]} Rf3 {[%emt 0:00:59] Weighted Error Value: White=0.53/Black=0.14 (very precise)} 0-1

[Event "Czech Championship 2022"]
[Site "Usti nad Labem"]
[Date "2022.05.16"]
[Round "3.7"]
[White "Stocek, Jiri"]
[Black "Sorm, Daniel"]
[Result "1-0"]
[ECO "A21"]
[WhiteElo "2533"]
[BlackElo "2306"]
[Annotator "TA"]
[PlyCount "83"]
[EventDate "2022.05.12"]
[EventType "swiss"]
[EventCountry "CZE"]
[SourceTitle "playchess.com"]
[Source "ChessBase"]
[SourceQuality "1"]
[TimeControl "40/5400+30:1800+30"]

{[%evp 9,83,32,29,20,27,6,9,13,54,54,45,58,68,43,50,10,22,10,19,0,0,0,0,0,0,0,107,104,100,99,90,87,237,245,395,383,369,381,386,377,361,361,391,408,455,450,447,449,458,457,436,435,581,579,537,522,581,530,669,623,625,616,586,577,573,439,433,423,829,828,804,731,1496,1456,1261,1170]} 1. c4 {[%emt 0:00:08]} e5 {[%emt 0:00:51]} 2. Nc3 {[%emt 0:00:55]} d6 {[%emt 0:01:00]} 3. Nf3 {[%emt 0:01:30]} f5 {[%emt 0:02:20]} 4. g3 {[%emt 0:01:33]} Nf6 {[%emt 0:01:14]} 5. d4 {[%emt 0:01:26]} e4 {[%emt 0:00:55]} 6. Nh4 {[%emt 0:00:10] A21: English Opening: 1...e5 2 Nc3.} c6 {[%emt 0:06:32]} 7. Bg5 {[%emt 0:03:50]} Be7 {[%emt 0:03:38]} 8. Bh3 {[%emt 0:01:19] [#] The position is equal.} Ng4 $146 {[%emt 0:05:10]} ({Predecessor:} 8... g6 9. Qb3 Nbd7 10. O-O-O Qb6 11. f3 Qxb3 12. axb3 exf3 13. exf3 Kf7 14. Rhe1 Nf8 {1-0 (48) Modler,A (2225)-Luethke,H (2115) Germany 2020}) 9. Bxe7 {[%emt 0:02:37]} Qxe7 {[%emt 0:00:09]} 10. Bxg4 {[%emt 0:11:57]} fxg4 {[%emt 0:00:11]} 11. Qc2 {[%emt 0:00:46]} O-O $1 {[%emt 0:03:22]} 12. Qxe4 {[%emt 0:19:07]} Qf7 {[%emt 0:00:06][%csl LRc4,LRf2]} 13. O-O {[%emt 0:02:46] Active counter play!} Qxc4 {[%emt 0:00:37]} 14. f3 {[%emt 0:01:25]} Nd7 {[%emt 0:14:56]} 15. Nf5 {[%emt 0:18:28]} Nf6 {[%emt 0:15:13]} 16. Nxd6 {[%emt 0:02:03]} Qb4 {[%emt 0:00:13]} 17. Qe5 {[%emt 0:01:20] Threatens to win with Nce4.} Rd8 {[%emt 0:03:49]} (17... Qxb2 $11 {remains equal.} 18. Qe3 gxf3) 18. Qc5 $40 {[%emt 0:06:18][%mdl 128] White has strong attack.} a5 {[%emt 0:11:26]} 19. a3 {[%emt 0:02:17]} Qb3 {[%emt 0:00:07]} 20. Rad1 {[%emt 0:06:58]} b6 {[%emt 0:08:38] This costs Black the game.} (20... Be6 $16 {was called for.}) 21. Qxc6 $18 {[%emt 0:04:39]} Ba6 {[%emt 0:06:36]} (21... Bd7 $142 22. Qc4+ Qxc4 23. Nxc4 b5) 22. fxg4 {[%emt 0:01:31]} Qe6 {[%emt 0:02:29] [#]} 23. Nf5 {[%emt 0:00:36][%cal Bd6f5,Bf5e7,Be7c6,Bc6e5][%mdl 32]} Qxc6 {[%emt 0:04:38]} 24. Ne7+ {[%emt 0:00:05] Pair of Knights!} Kh8 {[%emt 0:00:05]} 25. Nxc6 {[%emt 0:00:04]} Rdc8 {[%emt 0:00:13]} 26. Ne5 {[%emt 0:00:54] g5 is the strong threat.} Rxc3 {[%emt 0:00:07]} 27. bxc3 {[%emt 0:00:05] White is clearly winning.} Bxe2 {[%emt 0:00:04] [#]} 28. c4 $1 {[%emt 0:02:15]} Bxf1 {[%emt 0:06:21]} (28... Bxd1 29. Rxd1) 29. Rxf1 {[%emt 0:01:04][%mdl 4096] Endgame KRN-KRN} ({Don't take} 29. Kxf1 Re8 30. Rb1 Re6 $18) 29... h6 {[%emt 0:00:32]} 30. Rb1 {[%emt 0:00:19]} Kh7 {[%emt 0:01:44]} 31. Kf2 {[%emt 0:00:53]} Rd8 {[%emt 0:00:37]} 32. Ke3 {[%emt 0:00:07]} Rd6 {[%emt 0:00:07]} 33. d5 {[%emt 0:01:36]} Ne8 {[%emt 0:00:50]} 34. Nc6 {[%emt 0:02:19]} Nf6 {[%emt 0:01:01]} 35. h3 {[%emt 0:01:26]} Nd7 {[%emt 0:00:31]} 36. Kd4 {[%emt 0:00:57]} Rf6 {[%emt 0:00:18]} 37. Rb3 {[%emt 0:01:09]} a4 {[%emt 0:01:13]} 38. Rb4 {[%emt 0:01:07]} Rf3 {[%emt 0:00:14]} (38... Rf1 $142 39. Rxa4 Rd1+ 40. Ke3 Nc5) 39. Ne5 {[%emt 0:00:18]} Nxe5 {[%emt 0:01:16]} 40. Kxe5 {[%emt 0:00:04]} Rxa3 {[%emt 0:00:28]} 41. Rxb6 {[%emt 0:30:50]} Rb3 {[%emt 0:00:09]} 42. Ra6 {[%emt 0:00:00] Weighted Error Value: White=0.05 (flawless) /Black=0.37} 1-0

[Event "Czech Championship 2022"]
[Site "Usti nad Labem"]
[Date "2022.05.16"]
[Round "3.8"]
[White "Nytra, Ondrej"]
[Black "Rasik, Vitezslav"]
[Result "1/2-1/2"]
[ECO "B09"]
[WhiteElo "2219"]
[BlackElo "2433"]
[Annotator "TA"]
[PlyCount "59"]
[EventDate "2022.05.12"]
[EventType "swiss"]
[EventCountry "CZE"]
[SourceTitle "playchess.com"]
[Source "ChessBase"]
[SourceQuality "1"]
[TimeControl "40/5400+30:1800+30"]

{[%evp 18,59,19,34,36,36,34,24,39,31,44,37,64,28,51,8,10,9,18,0,0,0,0,0,0,-16,-13,-10,0,0,0,-16,-16,-9,-4,-89,0,0,0,-92,0,0,0,-74]} 1. e4 {[%emt 0:00:03]} d6 {[%emt 0:00:13]} 2. d4 {[%emt 0:00:06]} g6 {[%emt 0:00:12]} 3. Nc3 {[%emt 0:00:06]} Bg7 {[%emt 0:00:13]} 4. f4 {[%emt 0:00:06]} Nf6 {[%emt 0:00:29]} 5. Nf3 {[%emt 0:00:06]} O-O {[%emt 0:00:24]} 6. Bd3 {[%emt 0:00:06]} Nc6 {[%emt 0:00:31]} 7. e5 {[%emt 0:00:19]} dxe5 {[%emt 0:00:34]} 8. dxe5 {[%emt 0:00:04]} Nd5 {[%emt 0:01:00]} 9. Nxd5 {[%emt 0:00:06]} Qxd5 {[%emt 0:00:11]} 10. Qe2 {[%emt 0:00:04]} Bf5 {[%emt 0:02:16] Prevents Be4. B09: Pirc Defence: Austrian Attack.} 11. Bxf5 {[%emt 0:00:15]} gxf5 {[%emt 0:00:04]} 12. O-O {[%emt 0:00:04]} Rad8 {[%emt 0:09:32] White has an edge.} 13. Be3 {[%emt 0:00:49]} e6 {[%emt 0:14:42]} 14. c3 {[%emt 0:01:31] [#]} a6 $146 {[%emt 0:03:29]} ({Predecessor:} 14... Rfe8 15. Rfd1 Qa5 16. Qc4 Bf8 17. h3 Ne7 18. Bf2 Nd5 19. g3 c5 20. Kg2 b5 {1-0 (31) Drozdowski,K (2511)-Bachmann,A (2628) Chess.com INT 2017}) 15. Rfd1 {[%emt 0:05:25]} Qa5 {[%emt 0:05:33]} 16. Qc4 {[%emt 0:15:11]} Qb5 {[%emt 0:07:01]} 17. Qxb5 {[%emt 0:04:04]} axb5 {[%emt 0:00:16]} 18. Nd4 {[%emt 0:02:30]} Nxd4 {[%emt 0:06:55]} 19. Rxd4 {[%emt 0:00:05]} f6 {[%emt 0:11:23][%cal Bf7f6,Bf6e5][%mdl 32]} 20. Rad1 {[%emt 0:16:55]} Rxd4 {[%emt 0:05:52]} 21. Rxd4 {[%emt 0:02:12]} fxe5 $11 {[%emt 0:02:52][%mdl 4096] Endgame KRB-KRB} 22. Rd7 {[%emt 0:00:04]} Rf7 {[%emt 0:00:39]} 23. Rd8+ {[%emt 0:00:04]} Rf8 {[%emt 0:00:16]} 24. Rd7 {[%emt 0:00:07]} exf4 {[%emt 0:03:59]} 25. Bxf4 {[%emt 0:00:18]} e5 {[%emt 0:14:13]} 26. Rxc7 {[%emt 0:00:31]} Rf7 {[%emt 0:02:10]} 27. Rc8+ {[%emt 0:00:15]} Rf8 {[%emt 0:00:02]} 28. Rc7 {[%emt 0:00:09]} Rf7 {[%emt 0:03:32]} 29. Rc8+ {[%emt 0:01:09]} Rf8 {[%emt 0:00:02]} 30. Rc7 $1 {[%emt 0:00:53] Weighted Error Value: White=0.16 (very precise) /Black=0.21 (precise)} 1/2-1/2

[Event "Czech Championship 2022"]
[Site "Usti nad Labem"]
[Date "2022.05.16"]
[Round "3.9"]
[White "Finek, Vaclav"]
[Black "Sykora, Marek"]
[Result "1-0"]
[ECO "E01"]
[WhiteElo "2410"]
[BlackElo "2249"]
[Annotator "TA"]
[PlyCount "73"]
[EventDate "2022.05.12"]
[EventType "swiss"]
[EventCountry "CZE"]
[SourceTitle "playchess.com"]
[Source "ChessBase"]
[SourceQuality "1"]
[TimeControl "40/5400+30:1800+30"]

{[%evp 15,73,18,33,18,17,9,6,0,10,-5,-7,-15,-3,-9,-14,-17,0,-28,-26,-14,10,-37,-14,-20,24,0,0,-14,3,0,0,0,0,0,0,0,0,0,0,0,0,0,11,11,25,0,644,642,610,591,29966,29967,29967,29968,29966,12790,29984,29985,29986,29986]} 1. d4 {[%emt 0:00:02]} d5 {[%emt 0:00:07]} 2. Nf3 {[%emt 0:00:05]} Nf6 {[%emt 0:00:12]} 3. c4 {[%emt 0:00:09]} c6 {[%emt 0:00:27]} 4. Qc2 {[%emt 0:00:05]} e6 {[%emt 0:01:22]} 5. g3 {[%emt 0:00:11]} Nbd7 {[%emt 0:01:06]} 6. Bg2 {[%emt 0:00:05]} Bd6 {[%emt 0:01:04]} 7. O-O {[%emt 0:00:09]} O-O {[%emt 0:00:39]} 8. Rd1 {[%emt 0:00:22]} Qe7 {[%emt 0:03:04]} 9. Nc3 {[%emt 0:00:17] E01: Catalan: Early deviations.} dxc4 {[%emt 0:04:11]} 10. Nd2 {[%emt 0:03:24]} Nb6 {[%emt 0:06:22]} 11. Nce4 {[%emt 0:02:07] The position is equal.} Nxe4 {[%emt 0:02:26]} 12. Bxe4 {[%emt 0:00:27]} f5 {[%emt 0:01:35]} 13. Bg2 {[%emt 0:00:34]} e5 {[%emt 0:05:54]} 14. Nxc4 {[%emt 0:05:51]} Nxc4 {[%emt 0:03:43]} 15. Qxc4+ {[%emt 0:00:16] [#]} Kh8 $146 {[%emt 0:00:11]} ({Predecessor:} 15... Be6 16. d5 Bf7 17. Qa4 c5 18. Bd2 a6 {½-½ (18) Jonsson,K (2109)-Sandstrom,A (1999) Tylosand 2012}) 16. d5 {[%emt 0:14:16]} c5 {[%emt 0:01:26]} 17. b3 {[%emt 0:06:25]} a6 {[%emt 0:03:06]} 18. Bb2 {[%emt 0:01:07]} (18. e4 $11) 18... b5 {[%emt 0:00:41]} 19. Qc2 {[%emt 0:00:10]} Bb7 {[%emt 0:01:14]} 20. a4 {[%emt 0:08:00]} e4 {[%emt 0:09:24]} 21. e3 {[%emt 0:08:55]} Rfd8 {[%emt 0:07:46]} 22. axb5 {[%emt 0:02:25]} axb5 {[%emt 0:00:08]} 23. Rxa8 {[%emt 0:03:47]} Rxa8 {[%emt 0:01:50]} 24. Bf1 {[%emt 0:00:09]} b4 {[%emt 0:09:14]} 25. Bb5 {[%emt 0:06:11]} Ra5 {[%emt 0:03:18]} 26. Qe2 {[%emt 0:01:59]} Kg8 {[%emt 0:04:18]} 27. Bc4 {[%emt 0:01:18]} Bc8 {[%emt 0:03:45]} 28. Rf1 {[%emt 0:17:12]} Bd7 {[%emt 0:03:12]} 29. Ra1 {[%emt 0:01:56]} Qd8 {[%emt 0:05:36]} 30. Qd1 {[%emt 0:02:21] Hoping for Rxa5.} (30. Rxa5 {is interesting.} Qxa5 31. Qh5 Qd8 32. Kg2) 30... h6 $2 {[%emt 0:06:02][%mdl 8192]} (30... Be8 $11) 31. Rxa5 $18 {[%emt 0:06:12]} Qxa5 {[%emt 0:00:07] [#]} 32. Qh5 {[%emt 0:00:58] Inhibits Be8. Qg6 would kill now.} Qa2 {[%emt 0:06:43]} 33. Qg6 {[%emt 0:00:19][%csl Gb2,LRd6,LRg7][%cal Rg6g7]} Qxb2 {[%emt 0:01:08]} 34. Qxd6 {[%emt 0:00:06]} Qa1+ {[%emt 0:00:08]} 35. Kg2 {[%emt 0:00:40]} Qa7 {[%emt 0:00:54]} 36. Qe7 {[%emt 0:01:57]} f4 {[%emt 0:02:01]} 37. d6+ {[%emt 0:01:09] Weighted Error Value: White=0.06 (flawless) /Black=0.80} 1-0

[Event "Czech Championship 2022"]
[Site "Usti nad Labem"]
[Date "2022.05.16"]
[Round "3.10"]
[White "Brejnik, Gustav"]
[Black "Nemec, Jachym"]
[Result "0-1"]
[ECO "A79"]
[WhiteElo "2246"]
[BlackElo "2367"]
[Annotator "TA"]
[PlyCount "120"]
[EventDate "2022.05.12"]
[EventType "swiss"]
[EventCountry "CZE"]
[SourceTitle "playchess.com"]
[Source "ChessBase"]
[SourceQuality "1"]
[TimeControl "40/5400+30:1800+30"]

{[%evp 24,120,56,39,89,81,83,92,91,77,64,65,142,136,127,136,135,132,135,135,100,20,8,37,54,-8,-8,-15,-7,-7,-7,-9,-6,-6,-10,-12,-6,-6,-6,-7,-13,-30,-6,-113,-113,-104,-112,-118,-67,-67,-39,-51,-28,-178,-161,-172,-71,-71,0,-166,-164,-159,-101,-101,-101,-101,-96,-96,-96,-96,-96,-256,-163,-126,-138,-1208,-1201,-1201,-576,-283,-15,-12799,-12799,-12799,-12799,-12799,-12799,-12799,-12799,-12804,-12799,-12797,-12794,-12793,-12793,-12785,-10985,-7472,-7446]} 1. d4 {[%emt 0:00:09]} Nf6 {[%emt 0:00:05]} 2. c4 {[%emt 0:00:08]} e6 {[%emt 0:00:05]} 3. Nf3 {[%emt 0:03:31]} c5 {[%emt 0:00:04]} 4. d5 {[%emt 0:02:28]} exd5 {[%emt 0:00:06]} 5. cxd5 {[%emt 0:00:05]} d6 {[%emt 0:00:04]} 6. Nc3 {[%emt 0:00:12]} g6 {[%emt 0:00:04]} 7. e4 {[%emt 1:27:27]} Bg7 {[%emt 0:01:09]} 8. Be2 {[%emt 0:00:00]} O-O {[%emt 0:00:08]} 9. Nd2 {[%emt 0:00:00]} Re8 {[%emt 0:00:31]} 10. O-O {[%emt 0:00:00]} Na6 {[%emt 0:00:13]} 11. f3 {[%emt 0:00:00]} Nc7 {[%emt 0:00:53]} 12. a4 {[%emt 0:00:00]} b6 {[%emt 0:00:16]} 13. Kh1 {[%emt 0:00:00]} Nh5 {[%emt 0:18:22] A79: Modern Benoni: Classical: 9...Re8 10 Nd2 Na6 11 f3.} (13... Nd7 $14) 14. Nc4 $16 {[%emt 0:00:00]} Ba6 {[%emt 0:00:17]} 15. g4 $1 {[%emt 0:00:00] Against f5} Nf6 {[%emt 0:02:47] White is better.} 16. Bf4 {[%emt 0:00:00]} Bxc4 {[%emt 0:00:45]} 17. Bxc4 {[%emt 0:00:00] [#]} Qe7 $146 {[%emt 0:05:04] [#]} (17... a6 $14) ({Predecessor:} 17... a6 18. Qd3 h5 19. g5 Nh7 20. h4 Qd7 21. Kh2 Nf8 22. Bg3 b5 23. axb5 Bxc3 24. Qxc3 axb5 {1-0 (41) Artemiev,V (2570)-Indjic,A (2538) Yerevan 2014}) 18. e5 $1 {[%emt 0:00:00]} dxe5 {[%emt 0:01:02]} 19. d6 {[%emt 0:00:00]} Qf8 {[%emt 0:03:32]} 20. dxc7 {[%emt 0:00:00]} exf4 {[%emt 0:00:11]} 21. g5 {[%emt 0:00:00]} Nh5 {[%emt 0:02:10]} 22. Nb5 {[%emt 0:00:00]} ({White should play} 22. a5 $16 {Hoping for axb6.} Bxc3 23. bxc3) 22... Be5 {[%emt 0:08:53]} 23. Re1 {[%emt 0:00:00] And now Qd5 would win.} a6 {[%emt 0:10:35]} 24. Rxe5 {[%emt 0:00:00]} Rxe5 $11 {[%emt 0:02:06]} 25. Nd6 {[%emt 0:00:00] [#]} Re1+ $1 {[%emt 0:08:55]} 26. Qxe1 {[%emt 0:00:00]} Qxd6 {[%emt 0:00:04]} 27. Qe4 $132 {[%emt 0:04:23][%mdl 2048] White puts up resistance} Rc8 {[%emt 0:00:31]} 28. Re1 $1 {[%emt 0:00:33][%cal Oe4e8] Qe8+! is the strong threat.} Qxc7 {[%emt 0:17:56]} 29. Qe7 {[%emt 0:00:05]} Qxe7 {[%emt 0:12:09]} 30. Rxe7 {[%emt 0:00:01][%mdl 4096] Endgame KRB-KRN} b5 {[%emt 0:00:11]} 31. axb5 {[%emt 0:00:34]} axb5 {[%emt 0:00:04]} 32. Bxb5 {[%emt 0:00:14]} c4 {[%emt 0:03:44]} 33. Re2 {[%emt 0:00:53]} (33. Re8+ $11 Rxe8 34. Bxe8) 33... Rc5 $17 {[%emt 0:00:51][%csl LRb5,LRg5]} 34. Ba6 {[%emt 0:01:56]} c3 {[%emt 0:00:22]} 35. bxc3 {[%emt 0:00:42]} Rxc3 {[%emt 0:00:17]} ({Better is} 35... Rxg5 $17 36. c4 Ng7) 36. Kg2 $15 {[%emt 0:00:25]} Ng7 {[%emt 0:00:15]} 37. Re4 $1 {[%emt 0:00:38]} Ne6 {[%emt 0:00:21] Strongly threatening ...Rc2+.} 38. Bc4 {[%emt 0:01:02]} (38. h4 $1 $11 {and White is okay.}) 38... Rc2+ $19 {[%emt 0:00:37]} ({Weaker is} 38... Nxg5 39. Rxf4 Kg7 40. h4 $17) 39. Kh1 {[%emt 0:00:14]} Rc1+ {[%emt 0:01:23]} (39... Nxg5 $19 40. Rxf4 Rf2) 40. Kg2 $17 {[%emt 0:00:01]} Rc2+ {[%emt 0:00:05]} (40... Nxg5 $17 41. Rxf4 Kg7) 41. Kh1 $1 $19 {[%emt 0:30:08]} Nxg5 {[%emt 0:09:00]} 42. Rxf4 {[%emt 0:00:00]} Rf2 {[%emt 0:01:06]} (42... Kg7 $142 43. h4 Ne6 44. Bxe6 fxe6) 43. Bd5 $17 {[%emt 0:00:00]} Rd2 {[%emt 0:00:28]} 44. Bc4 {[%emt 0:00:00]} Kg7 {[%emt 0:06:33] Black is more active.} 45. h4 {[%emt 0:00:00]} Ne6 {[%emt 0:01:46]} 46. Bxe6 {[%emt 0:00:00]} fxe6 {[%emt 0:00:05] KR-KR} 47. Kg1 $2 {[%emt 0:00:00]} (47. Re4 $17) 47... e5 {[%emt 0:02:55]} 48. Re4 {[%emt 0:00:00]} Kf6 {[%emt 0:00:08] White must now prevent ...Rd4.} 49. f4 $2 {[%emt 0:00:00][%mdl 8192]} (49. h5 $17) 49... Kf5 $19 {[%emt 0:05:36][%csl LRe4,LRf4]} 50. Rxe5+ {[%emt 0:00:00]} Kxf4 {[%emt 0:00:04]} 51. Re7 {[%emt 0:00:00]} h5 {[%emt 0:01:39]} ({Black should try} 51... Kg3 $19 {( -> ...Rd1+)} 52. Kf1 Rf2+ 53. Ke1 h5) 52. Rg7 $2 {[%emt 0:00:00][%mdl 8192] [#]} (52. Rb7 $11) 52... Rd6 $1 {[%emt 0:00:57] Black is clearly winning.} 53. Ra7 {[%emt 0:00:00]} Kg3 {[%emt 0:00:22][%cal Rd6d1]} 54. Ra3+ {[%emt 0:00:00]} Kxh4 {[%emt 0:00:06]} 55. Kg2 {[%emt 0:00:00]} Kg5 {[%emt 0:00:41]} 56. Kg3 {[%emt 0:00:00]} Rd5 {[%emt 0:00:15]} 57. Rb3 {[%emt 0:00:00]} h4+ {[%emt 0:00:20]} 58. Kh3 {[%emt 0:00:00]} Kh5 {[%emt 0:00:13]} 59. Rb8 {[%emt 0:00:00]} Rd3+ {[%emt 0:00:06]} 60. Kg2 {[%emt 0:00:00]} g5 {[%emt 0:00:08] Weighted Error Value: White=0.42/Black=0.25 (precise)} 0-1